[Event "Czech Open-GM 2022"]
[Site "Pardubice"]
[Date "2022.07.22"]
[Round "1.15"]
[White "Smith, Bryan"]
[Black "Mueer, Sebastian"]
[Result "1-0"]
[ECO "B90"]
[WhiteElo "2421"]
[BlackElo "2161"]
[Annotator "TA"]
[PlyCount "47"]
[EventDate "2022.07.22"]
[EventType "swiss"]
[EventCountry "CZE"]
[SourceTitle "playchess.com"]
[Source "ChessBase"]
[SourceQuality "1"]
[TimeControl "40/5400+30:1800+30"]

{[%evp 9,47,27,29,19,23,24,24,22,26,27,39,27,97,99,87,81,145,128,181,114,114,114,114,111,116,110,215,211,250,248,250,233,500,495,585,587,581,577,699,588]} 1. e4 {[%emt 0:00:03]} c5 {[%emt 0:04:22]} 2. Nf3 {[%emt 0:00:20]} d6 {[%emt 0:00:12]} 3. d4 {[%emt 0:00:11]} cxd4 {[%emt 0:00:08]} 4. Nxd4 {[%emt 0:00:02]} Nf6 {[%emt 0:00:11]} 5. Nc3 {[%emt 0:00:05]} a6 {[%emt 0:00:09]} 6. Qd3 {[%emt 0:00:28] B90: Sicilian Najdorf: Unusual White 6th moves, 6 Be3 Ng4 and 6 Be3 e5.} Nbd7 {[%emt 0:03:56]} 7. Be2 {[%emt 0:00:50]} g6 {[%emt 0:04:47]} 8. Bg5 {[%emt 0:01:03] White has an edge.} Bg7 {[%emt 0:02:58]} 9. O-O-O {[%emt 0:01:58]} h6 {[%emt 0:05:32]} 10. Bh4 {[%emt 0:03:50] [#]} b5 $146 {[%emt 0:08:50]} (10... O-O $11) ({Predecessor:} 10... Qc7 11. f4 b5 12. Bf3 Bb7 13. Rhe1 Rc8 14. e5 dxe5 15. fxe5 Nc5 16. Qe2 Bxf3 17. Qxf3 {1-0 (25) Sunilduth Lyna,N (2662)-Navara,D (2682) Prague 2022}) 11. Nc6 $16 {[%emt 0:07:38]} Qc7 {[%emt 0:09:46]} 12. Nxe7 {[%emt 0:01:01] 0x0.00144a80cbacdp-1022s more active pieces. The black rooks are badly placed.} Nc5 {[%emt 0:06:40]} ({Black should play} 12... Bb7) 13. Qd4 {[%emt 0:20:52]} Ne6 {[%emt 0:05:51]} (13... Qxe7 $16 14. Nd5 Nxd5 15. Qxg7 Qf8 16. Qxf8+ Kxf8) 14. Qxd6 {[%emt 0:15:49]} Qxd6 {[%emt 0:00:51][%mdl 64] [#] Remove Defender} 15. Rxd6 {[%emt 0:00:05][%cal Oe4e5] e5! is the strong threat.} Kxe7 {[%emt 0:08:42]} 16. e5 $36 {[%emt 0:00:07][%mdl 2112] Black must now prevent Nd5+. Pin. White is in control.} g5 {[%emt 0:00:11]} 17. exf6+ {[%emt 0:00:32]} Kxd6 {[%emt 0:07:42]} (17... Bxf6 $16 18. Bg3 Bb7) 18. fxg7 {[%emt 0:00:27] Intending Rd1+ and mate.} Nxg7 {[%emt 0:01:23]} 19. Bg3+ {[%emt 0:00:33]} Kc5 {[%emt 0:12:45] [#]} 20. Be5 $1 {[%emt 0:07:01]} Rg8 {[%emt 0:00:01]} (20... f6) 21. Bf3 $18 {[%emt 0:01:02] White is clearly winning.} Ra7 {[%emt 0:06:26]} 22. Ne4+ {[%emt 0:00:47]} Kd5 {[%emt 0:00:49]} 23. Bb8 {[%emt 0:00:36] Strongly threatening Nf6+. This bishop pair is nice.} g4 {[%emt 0:04:13][%cal Og4f3]} 24. Nc3+ {[%emt 0:00:35] Weighted Error Value: White=0.10 (very precise) /Black=0.50} 1-0

[Event "Czech Open-GM 2022"]
[Site "Pardubice"]
[Date "2022.07.22"]
[Round "1.16"]
[White "Bouska, Jiri"]
[Black "Lalic, Bogdan"]
[Result "0-1"]
[ECO "B32"]
[WhiteElo "2157"]
[BlackElo "2412"]
[Annotator "TA"]
[PlyCount "62"]
[EventDate "2022.07.22"]
[EventType "swiss"]
[EventCountry "CZE"]
[SourceTitle "playchess.com"]
[Source "ChessBase"]
[SourceQuality "1"]
[TimeControl "40/5400+30:1800+30"]

{[%evp 10,62,26,0,8,0,0,0,0,-70,-72,-72,-65,-83,-88,-94,-75,-83,-80,-75,-55,-68,-54,-88,-85,-89,-95,-109,-116,-102,-102,-102,-94,-106,-110,-92,-99,-125,-99,-148,-62,-131,-103,-83,-110,-101,-70,-166,-179,-315,-302,-576,-572,-794,-789]} 1. e4 c5 2. Nf3 Nc6 3. d4 cxd4 4. Nxd4 e5 5. Nb5 d6 6. a4 a6 {B32: Sicilian: Löwenthal and Kalashnikov Variations.} 7. N5a3 Be7 {[#]} 8. Be3 $146 ({Predecessor:} 8. Nc3 Nf6 9. Bc4 Bg4 10. f3 Be6 11. Be3 Rc8 12. Nd5 Bxd5 13. exd5 Nb8 14. O-O Nbd7 15. Qd2 O-O 16. a5 e4 17. f4 Ng4 {½-½ (17) Mueller,K (2525)-Brodsky,M (2529) Hamburg 2001}) 8... Nf6 {[%cal Bg8f6,Bf6d5,Bd5b4][%mdl 32] The position is equal.} 9. Bd3 (9. Nc3 $11) 9... d5 $15 10. exd5 Nxd5 11. Bd2 O-O 12. O-O Be6 13. Nc3 Ndb4 14. Bc4 Bxc4 15. Nxc4 Qd4 16. b3 Rad8 17. Rc1 f5 18. Qf3 {[#]} Qd7 $1 {[%cal Ob4c2]} 19. Be3 Nd4 20. Bxd4 exd4 21. Ne2 {[#]} Bg5 $1 22. Rcd1 Nxc2 23. Qd3 {[#]} Rfe8 $1 {[%cal Ob7b5] Hoping for ...b5!} 24. Nd2 ({Not} 24. Qxc2 $2 d3 25. Qc3 Bf6 $19) ({Better is} 24. Ng3) 24... Qd5 25. Ng3 (25. Nf3 $15 Bf6 26. Nf4 (26. Qxc2 $2 d3 $19)) 25... Nb4 $36 {[%mdl 2048] Black is on the roll. 0x0.00144a4d3ebedp-1022s more active pieces.} 26. Qxf5 Qxf5 27. Nxf5 d3 28. f4 ({White should play} 28. Nf3 $1 $15) 28... Bf6 $19 29. Rc1 (29. Rfe1 $142) 29... Re2 30. Rfd1 (30. Nf3 {was called for.}) 30... Na2 31. Rc4 Nc3 {Weighted Error Value: White=0.44/Black=0.08 (flawless)} 0-1

[Event "Czech Open-GM 2022"]
[Site "Pardubice"]
[Date "2022.07.22"]
[Round "1.17"]
[White "Jurcik, Marian"]
[Black "Folk, Petr"]
[Result "1-0"]
[ECO "B44"]
[WhiteElo "2409"]
[BlackElo "2157"]
[Annotator "TA"]
[PlyCount "57"]
[EventDate "2022.07.22"]
[EventType "swiss"]
[EventCountry "CZE"]
[SourceTitle "playchess.com"]
[Source "ChessBase"]
[SourceQuality "1"]
[TimeControl "40/5400+30:1800+30"]

{[%evp 9,57,13,35,31,29,35,32,16,12,6,32,24,55,58,70,64,64,27,81,82,87,94,93,84,156,156,289,270,371,360,431,326,423,384,394,382,369,377,411,403,557,306,489,315,404,405,1001,462,440,412]} 1. e4 c5 2. Nf3 e6 3. d4 cxd4 4. Nxd4 Nc6 5. Bf4 a6 6. Nxc6 {B44: Sicilian: Taimanov: 5 Nb5.} bxc6 7. Bd3 {[#]} Nf6 $146 ({Predecessor:} 7... d5 8. O-O Nf6 9. c4 Be7 10. exd5 cxd5 11. cxd5 Nxd5 12. Be5 O-O 13. Qh5 Bf6 14. Qxh7# {1-0 (14) Ovezdurdiyeva,J (2061)-Wanyama,H (2242) Chess.com INT 2022}) 8. e5 {White is slightly better.} Nd5 9. Bg3 f5 10. exf6 Nxf6 (10... Qxf6 {keeps more tension.} 11. Nd2 Be7 12. Ne4 Qxb2 13. Nd6+ Bxd6 14. Bxd6 Qc3+) 11. O-O Be7 12. Nd2 {[%cal Bb1d2,Bd2c4,Bc4e5][%mdl 32]} O-O 13. Nc4 d5 (13... g6 $11) 14. Ne5 $16 {White is more active. White leaves nothing to chance now.} Qb6 15. c4 c5 16. Qc2 Bb7 {[#]} (16... Ra7 $142) 17. Bh4 $1 {aiming for Bxf6.} Qd6 (17... dxc4 $16 18. Nxc4 (18. Bxh7+ Nxh7 19. Bxe7 Bxg2 $16) 18... Qc6) 18. Bxf6 $18 Rxf6 19. Bxh7+ Kh8 20. Rae1 Raf8 21. Ng6+ Kxh7 22. Nxf8+ {[%mdl 64] [#] Discovered Attack (Double check)} Kg8 {Threatens to win with ...Rh6.} 23. Ng6 Bd8 24. f4 {[%cal Bf2f4,Bf4e5][%mdl 32]} Bc7 25. Ne5 Rf5 (25... dxc4 $142 26. Rd1 (26. Nxc4 Qd4+ 27. Ne3 Bxf4 $11) 26... Bd5) 26. cxd5 Qxd5 27. Rd1 {Against Qd4+} Qxa2 (27... Qe4 $142 28. Qxe4 Bxe4) 28. Rd7 (28. Ng6 $142) 28... Bxe5 29. fxe5 {Weighted Error Value: White=0.47/Black=0.49} ({Weaker is} 29. Rxb7 Qd5 30. Ra7 (30. fxe5 Rxf1+ 31. Kxf1 Qxb7 $14) 30... Qd4+ 31. Kh1 Rxf4 32. Ra8+ Kf7 $18) 1-0

[Event "Czech Open-GM 2022"]
[Site "Pardubice"]
[Date "2022.07.22"]
[Round "1.18"]
[White "Yagiz, Bora"]
[Black "Moksh Amit Doshi"]
[Result "0-1"]
[ECO "B51"]
[WhiteElo "2154"]
[BlackElo "2409"]
[Annotator "TA"]
[PlyCount "117"]
[EventDate "2022.07.22"]
[EventType "swiss"]
[EventCountry "CZE"]
[SourceTitle "playchess.com"]
[Source "ChessBase"]
[SourceQuality "1"]
[TimeControl "40/5400+30:1800+30"]

{[%evp 9,117,21,22,41,35,37,44,20,37,19,29,0,8,0,8,0,0,0,0,0,0,0,0,0,0,0,-15,-17,-14,-31,-30,-127,0,0,0,0,0,-141,0,-141,-59,-69,-72,-59,0,-100,-83,-127,-127,-131,-121,-135,-138,-131,-102,-153,-84,-83,-94,-145,-141,-156,-156,-195,-133,-141,-140,-218,-218,-218,-218,-325,-310,-311,-279,-275,-235,-220,-180,-193,-168,-196,-198,-299,-247,-253,-195,-954,-947,-863,-835,-2026,-1235,-2213,-1975,-2010,-858,-1490,-1494,-1494,-1494,-2018,-1962,-5213,-5531,-5506,-5504,-29973,-29968,-2450]} 1. e4 {[%emt 0:08:25]} c5 {[%emt 0:00:38]} 2. Nf3 {[%emt 0:00:08]} d6 {[%emt 0:00:08]} 3. Bb5+ {[%emt 0:00:15]} Nd7 {[%emt 0:00:13]} 4. a4 {[%emt 0:00:13]} Ngf6 {[%emt 0:02:01]} 5. Nc3 {[%emt 0:01:21]} g6 {[%emt 0:02:50]} 6. a5 {[%emt 0:01:15] B51: Sicilian: Moscow Variation (3 Bb5+) without 3...Bd7.} a6 {[%emt 0:01:53]} 7. Bc4 {[%emt 0:04:57][%cal Oc4f7]} e6 {[%emt 0:02:52] [#]} 8. Qe2 $146 {[%emt 0:06:34] White is slightly better.} ({Predecessor:} 8. d4 cxd4 9. Qxd4 Qc7 10. Qd3 Nc5 11. Qe2 Bg7 12. O-O O-O 13. Bf4 Nh5 14. Bg5 {0-1 (32) Sjugirov,S (2663)-Brkic,A (2592) Tornelo INT 2021}) 8... Bg7 {[%emt 0:00:30]} 9. O-O {[%emt 0:04:02]} O-O {[%emt 0:01:22]} 10. d4 {[%emt 0:07:36]} cxd4 {[%emt 0:03:14]} 11. Nxd4 {[%emt 0:00:50]} Nc5 {[%emt 0:01:50]} 12. Nb3 {[%emt 0:03:56]} Ncxe4 {[%emt 0:02:40]} 13. Nxe4 {[%emt 0:00:24]} Nxe4 {[%emt 0:00:08]} 14. Qxe4 {[%emt 0:00:56]} d5 {[%emt 0:00:11]} 15. Bxd5 {[%emt 0:00:40]} exd5 {[%emt 0:00:26]} 16. Qb4 {[%emt 0:00:46]} Re8 {[%emt 0:04:05]} 17. Nd4 {[%emt 0:06:44]} Qh4 {[%emt 0:02:35]} 18. Be3 {[%emt 0:13:17]} Re4 {[%emt 0:02:14][%cal Rg7d4]} 19. Rfe1 {[%emt 0:10:04]} Be5 {[%emt 0:03:04]} ({But not} 19... Bxd4 20. Bxd4 Qg5 21. g3 $16) 20. g3 {[%emt 0:02:42]} (20. f4 $1 $11 Bxf4 21. Bxf4 Qxf4 22. c3) 20... Rxd4 {[%emt 0:04:43]} (20... Qf6 $1 $17 {aiming for ...Bh3.} 21. Red1 Bh3) 21. Bxd4 $11 {[%emt 0:01:02]} Qxd4 {[%emt 0:00:08]} 22. Qxd4 {[%emt 0:05:21]} Bxd4 {[%emt 0:01:07]} 23. Re8+ {[%emt 0:00:06]} Kg7 {[%emt 0:00:05]} 24. c3 {[%emt 0:00:22]} (24. Rae1 $1 $11 {was the only way to keep the balance.}) 24... Ba7 {[%emt 0:04:27]} (24... Bc5 $1 $17 25. b4 Bd6) 25. Rae1 $1 $15 {[%emt 0:03:24] Hoping for Rd8.} Rb8 $1 {[%emt 0:05:19]} 26. R1e7 {[%emt 0:01:31]} g5 {[%emt 0:02:02]} (26... Bf5 $15 27. Rxb8 Bxb8) 27. Rc7 {[%emt 0:04:21]} (27. b4 $1 $11 {remains equal.} Bg4 28. Rxb8 Bxb8 29. Rxb7) 27... Bf5 $17 {[%emt 0:00:17]} 28. Rxb8 {[%emt 0:01:00]} Bxb8 {[%emt 0:00:06]} 29. Rxb7 {[%emt 0:00:10]} Be5 {[%emt 0:00:05]} 30. Kf1 {[%emt 0:03:40]} d4 {[%emt 0:10:53]} 31. cxd4 {[%emt 0:01:38]} Bxd4 {[%emt 0:00:06]} 32. Ke2 {[%emt 0:00:42] Prevents Bd3+.} (32. Ke1 $142) 32... Kf6 {[%emt 0:00:11] Black is more active.} ({Better is} 32... Be6 {...Bc4+ is the strong threat.} 33. f4 gxf4) 33. b4 {[%emt 0:03:19]} Be6 $1 {[%emt 0:01:47] This bishop pair is nice.} 34. Rc7 {[%emt 0:03:16] Prevents Bc4+.} (34. Kd3 $142 Bxf2 35. b5) 34... Ke5 $1 {[%emt 0:00:28]} 35. f4+ {[%emt 0:02:14]} Kd6 {[%emt 0:02:02]} 36. Rc1 {[%emt 0:00:19]} g4 {[%emt 0:00:40]} (36... Bb2 $19 37. Rc2 Ba3 38. Rd2+ Kc6 39. Rc2+ Kb5 40. Rc5+ Kxb4 41. Rxg5 h6) 37. Kd3 {[%emt 0:00:56]} Ba7 {[%emt 0:00:05]} 38. Ke4 {[%emt 0:00:31]} (38. Kc3 $17) 38... f5+ $19 {[%emt 0:00:24]} 39. Kd3 {[%emt 0:00:06]} Bd7 {[%emt 0:00:46]} 40. Re1 {[%emt 0:00:50]} (40. Kd2 $142) 40... Bc6 {[%emt 0:01:20]} 41. Kc3 {[%emt 0:07:04]} h5 {[%emt 0:01:32]} 42. Rd1+ {[%emt 0:03:09]} Bd5 {[%emt 0:00:15]} 43. Re1 {[%emt 0:00:14]} Kd7 {[%emt 0:04:33]} 44. Rd1 {[%emt 0:00:50] [#]} Kc6 {[%emt 0:00:26]} 45. Re1 {[%emt 0:01:10]} Be4 {[%emt 0:00:12][%cal Oh5h4]} 46. Kc4 {[%emt 0:00:48]} (46. Rc1 {might work better.}) 46... Bf2 {[%emt 0:01:24]} 47. Rf1 {[%emt 0:01:11] [#]} Be3 {[%emt 0:00:07] And now ...Bd2 would win.} 48. Rd1 $2 {[%emt 0:05:16]} (48. Kc3) 48... h4 $1 {[%emt 0:02:13][%cal Bh5h4,Bh4h3][%mdl 32]} 49. Rf1 {[%emt 0:09:04]} h3 {[%emt 0:02:39] Threatens to win with ...Bg2.} 50. Rd1 {[%emt 0:01:46]} Bf2 {[%emt 0:00:15][%cal Of2g3]} 51. Rd2 {[%emt 0:02:55]} Bg1 {[%emt 0:00:07]} 52. Re2 {[%emt 0:00:58]} Bd5+ {[%emt 0:00:25]} (52... Bg2 $142 53. Re6+ Kd7) 53. Kc3 {[%emt 0:00:07]} Bg2 {[%emt 0:00:07]} 54. Re6+ {[%emt 0:00:22]} Kb7 {[%emt 0:00:38]} 55. Re7+ {[%emt 0:01:01]} Kc8 {[%emt 0:00:05]} 56. b5 {[%emt 0:01:45]} axb5 {[%emt 0:00:34]} 57. a6 {[%emt 0:00:36]} Kb8 {[%emt 0:00:55]} 58. Rf7 {[%emt 0:00:43]} Bxh2 {[%emt 0:00:25]} 59. Kd4 {Weighted Error Value: White=0.83/Black=0.17 (very precise)} 0-1

[Event "Czech Open-GM 2022"]
[Site "Pardubice"]
[Date "2022.07.22"]
[Round "1.19"]
[White "Hollan, Martin"]
[Black "Budzisz, Adrian"]
[Result "1-0"]
[ECO "C00"]
[WhiteElo "2399"]
[BlackElo "2152"]
[Annotator "TA"]
[PlyCount "89"]
[EventDate "2022.07.22"]
[EventType "swiss"]
[EventCountry "CZE"]
[SourceTitle "playchess.com"]
[Source "ChessBase"]
[SourceQuality "1"]
[TimeControl "40/5400+30:1800+30"]

{[%evp 9,89,0,0,0,0,-14,29,22,47,-13,-12,-7,-12,-18,0,0,0,-3,-16,-30,-26,-23,-15,-27,-10,-11,-12,-16,0,0,0,0,0,0,60,27,17,31,50,49,40,0,43,23,37,25,28,27,30,0,0,6,29,30,50,47,62,61,62,58,65,10,10,0,0,0,29,20,58,58,58,58,70,61,112,96,787,781,888,874,796,728]} 1. e4 {[%emt 0:00:02]} e6 {[%emt 0:00:10]} 2. d4 {[%emt 0:00:44]} d5 {[%emt 0:00:06]} 3. Bd3 {[%emt 0:00:06][%cal Bf1d3,Bd3e4,Be4f3][%mdl 32]} dxe4 {[%emt 0:00:08]} 4. Bxe4 {[%emt 0:00:08]} Nf6 {[%emt 0:00:05]} 5. Bf3 {[%emt 0:00:10]} Be7 {[%emt 0:00:13]} 6. Ne2 {[%emt 0:00:37] C01: French: Exchange Variation.} O-O {[%emt 0:00:10]} 7. O-O {[%emt 0:01:26]} Nbd7 {[%emt 0:00:46][%cal Bb8d7,Bd7b6,Bb6d5][%mdl 32]} 8. Bf4 {[%emt 0:05:15] White has an edge.} c5 {[%emt 0:01:29]} 9. c3 {[%emt 0:00:21]} ({White should try} 9. Nbc3 $14) 9... cxd4 $11 {[%emt 0:01:41]} 10. cxd4 {[%emt 0:00:09]} Nb6 {[%emt 0:01:14]} 11. Nbc3 {[%emt 0:08:04]} Nbd5 {[%emt 0:06:24]} 12. Be5 {[%emt 0:14:02]} Bd7 {[%emt 0:04:25]} 13. Bxf6 {[%emt 0:00:43]} Nxf6 {[%emt 0:00:14] [#]} 14. Qb3 $146 {[%emt 0:00:32]} ({Predecessor:} 14. d5 exd5 15. Nxd5 Nxd5 16. Qxd5 Rb8 17. Rfd1 Ba4 18. b3 Qxd5 19. Bxd5 Bb5 20. Nc3 Ba6 21. Bf3 Rfd8 22. Nd5 Bd6 23. Rac1 Ba3 24. Rc7 Rbc8 {½-½ (24) Omanovic,V-Miricanac,A (2222) Neum 2003}) 14... Rb8 {[%emt 0:00:26]} 15. Rfd1 {[%emt 0:04:38]} Bd6 {[%emt 0:03:47]} 16. Ng3 {[%emt 0:05:42]} Qe7 {[%emt 0:10:59]} 17. Re1 {[%emt 0:18:25]} Rfd8 {[%emt 0:02:28]} 18. Rad1 {[%emt 0:03:05]} Bxg3 {[%emt 0:07:04]} 19. hxg3 {[%emt 0:00:08]} Qd6 {[%emt 0:00:10]} 20. d5 {[%emt 0:02:36] [#] Black must now prevent dxe6.} (20. Bxb7 $2 Qc7 21. d5 Rxb7 $19) 20... e5 {[%emt 0:00:54]} 21. a3 {[%emt 0:03:46]} g5 {[%emt 0:09:53]} ({Better is} 21... a5 $11) 22. Qb4 {[%emt 0:03:57]} Qxb4 {[%emt 0:00:13]} 23. axb4 {[%emt 0:00:05]} g4 {[%emt 0:00:17]} 24. Be2 {[%emt 0:02:37]} Ne8 {[%emt 0:02:24]} 25. Ne4 {[%emt 0:06:47]} f5 {[%emt 0:06:44]} 26. Nc5 {[%emt 0:01:06]} Nd6 {[%emt 0:00:50]} 27. f3 {[%emt 0:04:39]} ({Much weaker is} 27. Nxd7 Rxd7 28. Rd3 Rbd8 $15) 27... gxf3 {[%emt 0:01:21]} 28. gxf3 {[%emt 0:00:10]} b6 {[%emt 0:00:40]} 29. Ne6 {[%emt 0:02:10]} (29. Nd3 $5 {[%cal Rd3e5]}) 29... Re8 {[%emt 0:04:09]} 30. Ra1 {[%emt 0:02:33]} Bxe6 {[%emt 0:03:43]} 31. dxe6 {[%emt 0:00:08]} Re7 {[%emt 0:02:17]} 32. Red1 {[%emt 0:00:40]} Ne8 {[%emt 0:01:25]} 33. Rd5 {[%emt 0:05:33]} Kg7 {[%emt 0:00:12]} 34. Rxe5 {[%emt 0:00:13]} Kf6 {[%emt 0:00:03][%csl LRe5,LRe6]} 35. f4 {[%emt 0:00:31] White is more active.} (35. Rd5 $1 $14) 35... Rd8 {[%emt 0:00:35]} 36. Bb5 {[%emt 0:02:01]} Ng7 {[%emt 0:05:07]} 37. Bc4 {[%emt 0:02:31]} Rd4 {[%emt 0:01:07]} 38. b3 {[%emt 0:00:19]} h5 {[%emt 0:03:09]} 39. Kf2 {[%emt 0:01:14]} ({Of course not} 39. Rae1 h4 $11) 39... Rd2+ {[%emt 0:04:30]} (39... Nxe6 $2 40. Rae1 Re4 41. R5xe4 (41. R1xe4 fxe4 42. Rxe4 Ng7 $16) 41... fxe4 42. Rxe4 $16) 40. Ke3 {[%emt 0:00:25]} Rd6 {[%emt 0:00:06][%cal Rg7e6]} 41. Re1 {[%emt 0:05:27]} Nxe6 {[%emt 0:04:02]} (41... Ne8 $14) 42. Kf2 $16 {[%emt 0:01:41] Strongly threatening b5.} Rd2+ $2 {[%emt 0:05:17][%mdl 8192] [#]} (42... a6 $16) 43. Kf1 $1 $18 {[%emt 0:00:40] White is clearly winning.} Rd6 {[%emt 0:00:47]} 44. b5 {[%emt 0:00:16]} Re8 {[%emt 0:01:26]} 45. Kg2 {[%emt 0:07:47] Weighted Error Value: White=0.10 (very precise) /Black=0.14 (very precise)} 1-0

[Event "Czech Open-GM 2022"]
[Site "Pardubice"]
[Date "2022.07.22"]
[Round "1.20"]
[White "Staeblein, Christoph"]
[Black "Tahay, Alexis"]
[Result "0-1"]
[ECO "A40"]
[WhiteElo "2150"]
[BlackElo "2393"]
[Annotator "TA"]
[PlyCount "98"]
[EventDate "2022.07.22"]
[EventType "swiss"]
[EventCountry "CZE"]
[SourceTitle "playchess.com"]
[Source "ChessBase"]
[SourceQuality "1"]
[TimeControl "40/5400+30:1800+30"]

{[%evp 17,98,7,21,0,30,27,47,2,56,0,42,0,3,-16,-7,0,0,-41,-16,-44,-8,-22,6,0,0,0,15,0,0,0,0,0,0,0,0,0,0,-4,0,-4,0,-20,-16,-54,-56,-60,-42,-167,-167,-164,-164,-163,-161,-140,-82,-82,-83,-571,-127,-127,-134,-116,-116,-196,-196,-237,-196,-196,-196,-798,-196,-196,-196,-791,-791,-744,-196,-744,-196,-196,-196,-29962,-29958]} 1. d4 {[%emt 0:00:07]} Nf6 {[%emt 0:00:05]} 2. c4 {[%emt 0:00:10]} e6 {[%emt 0:00:04]} 3. g3 {[%emt 0:00:11]} d5 {[%emt 0:00:29]} 4. Nf3 {[%emt 0:00:12]} Bb4+ {[%emt 0:00:05]} 5. Bd2 {[%emt 0:00:10]} a5 {[%emt 0:00:08]} 6. Bg2 {[%emt 0:00:15]} O-O {[%emt 0:00:06]} 7. Qc2 {[%emt 0:07:37]} Nbd7 {[%emt 0:00:33]} 8. O-O {[%emt 0:00:17]} Be7 {[%emt 0:00:02]} 9. Bf4 {[%emt 0:09:37] 9.Rd1 is setting a new trend.} c6 {[%emt 0:00:23]} 10. b3 {[%emt 0:01:52] E08: Closed Catalan: Main Line: 7 Qc2.} Ne4 {[%emt 0:02:40]} 11. Nc3 {[%emt 0:02:25]} f5 {[%emt 0:09:10]} 12. Ne5 {[%emt 0:09:59][%cal Rc3e4] [#] White is slightly better.} Nd6 $146 {[%emt 0:06:11]} ({Better is} 12... g5 $11 13. Nxd7 (13. Nxe4 gxf4 14. Nxd7 Bxd7 $11) 13... Bxd7) ({Predecessor:} 12... g5 13. Nxd7 Bxd7 14. Be5 Bf6 15. Bxf6 Qxf6 16. Nxe4 fxe4 17. Qc3 h5 18. f3 exf3 19. Bxf3 Qg6 {0-1 (35) Ellis,R (2123)-Addis,E (2031) USA 2000}) 13. Qd3 {[%emt 0:12:13]} (13. Rad1 $14) 13... g5 {[%emt 0:05:15]} 14. Nxd7 {[%emt 0:00:49]} Bxd7 {[%emt 0:01:31][%cal Bc8d7,Bd7e8,Be8f7][%mdl 32]} 15. Be5 {[%emt 0:01:10][%cal Oh2h4]} Nf7 {[%emt 0:04:24]} 16. f4 {[%emt 0:01:32]} Nxe5 {[%emt 0:02:22]} 17. dxe5 {[%emt 0:02:11]} Be8 {[%emt 0:04:46]} 18. Rad1 {[%emt 0:09:46]} Bf7 {[%emt 0:04:51]} 19. Kh1 {[%emt 0:02:21][%cal Rc4d5]} Qb8 {[%emt 0:05:58]} 20. cxd5 {[%emt 0:01:57]} cxd5 {[%emt 0:00:06]} 21. Nb5 {[%emt 0:01:18]} Qd8 {[%emt 0:08:26]} 22. Rc1 {[%emt 0:03:44][%cal Og3g4]} Rc8 {[%emt 0:01:17]} 23. Qe3 {[%emt 0:02:10]} Qd7 {[%emt 0:01:47]} 24. a4 {[%emt 0:00:30]} g4 {[%emt 0:04:39]} 25. Na7 {[%emt 0:10:22]} Rxc1 {[%emt 0:05:03]} 26. Rxc1 {[%emt 0:00:07]} Ra8 {[%emt 0:00:08]} 27. Nb5 {[%emt 0:01:07]} Rc8 {[%emt 0:00:09] Inhibits Rc7.} 28. h3 {[%emt 0:04:43]} h5 {[%emt 0:04:38]} 29. Na7 {[%emt 0:01:15]} Rc7 {[%emt 0:03:34]} 30. Nb5 {[%emt 0:00:11]} Rxc1+ {[%emt 0:00:42]} 31. Qxc1 {[%emt 0:00:06]} Qc6 $1 {[%emt 0:00:09]} 32. Qxc6 {[%emt 0:01:21]} ({White should play} 32. Qd1 $15) 32... bxc6 $15 {[%emt 0:00:01][%mdl 4096] Endgame KBB-KBN} 33. Nd4 {[%emt 0:00:12]} c5 {[%emt 0:03:13]} 34. Nc6 {[%emt 0:00:23]} Kf8 {[%emt 0:01:05] Hoping for ...c4.} 35. Nxa5 {[%emt 0:00:28]} Be8 {[%emt 0:00:32]} (35... Bd8 $142 $1 {[%cal Rd8a5]} 36. Nc6 c4 37. bxc4 (37. Nxd8 $2 cxb3 38. Kh2 b2 $19) 37... dxc4 $1) 36. hxg4 $17 {[%emt 0:00:48]} hxg4 {[%emt 0:00:03][%cal Oc5c4]} 37. Kg1 $2 {[%emt 0:00:35][%mdl 8192] [#]} (37. Kh2 $17 {was the crucial defense.}) 37... c4 $2 {[%emt 0:06:59]} (37... Bd8 $1 $19 {[%cal Rd8a5] and Black stays clearly on top.} 38. e4 (38. Nb7 $2 Bb6 $19) 38... Bxa5 39. exd5 Be1) 38. bxc4 {[%emt 0:00:12]} Bb4 {[%emt 0:00:01]} 39. cxd5 {[%emt 0:12:10] Threatens to win with Nb7.} Bxa5 {[%emt 0:00:03]} 40. dxe6 {[%emt 0:00:24]} (40. e4 $17) 40... Bb6+ $19 {[%emt 0:03:02]} 41. Kh2 {[%emt 0:30:07]} Be3 {[%emt 0:32:03]} 42. Bd5 {[%emt 0:00:00]} Bxa4 {[%emt 0:00:00]} 43. Bc4 {[%emt 0:00:00] Inhibits Bb5.} (43. e7+ Kxe7 44. Kg2) 43... Ke7 $2 {[%emt 0:00:00]} (43... Bc6 44. Ba6 Be4) 44. Kg2 {[%emt 0:00:00]} Bc6+ {[%emt 0:00:00] This bishop pair is nice.} 45. Kh2 $2 {[%emt 0:00:00]} (45. Kf1) 45... Bb7 {[%emt 0:00:00]} 46. Bd5 {[%emt 0:00:00]} Bc8 $2 {[%emt 0:00:00]} (46... Ba6 47. Bb3 Bb7) 47. Bc6 $2 {[%emt 0:00:00]} (47. Kg2) 47... Bxe6 $2 {[%emt 0:00:00]} (47... Ba6 48. Ba4 Bc4) 48. Bb7 {[%emt 0:00:00]} Kd7 {[%emt 0:00:00] ( -> ...Bc4)} 49. Ba8 $2 {[%emt 0:00:00]} (49. Kg2 $19) 49... Bc4 {[%emt 0:00:00] Weighted Error Value: White=1.02/Black=0.83} 0-1